bitfinex/quotes_SOLUSD_20220212
["timestamp","ask_amount","ask_price","bid_price","bid_amount"]
[1644677475661,34.94111588,93.967,93.871,30.98296787]
[1644677475858,34.94111588,93.967,93.872,17.81981566]
[1644677476257,47.8794,93.999,93.872,17.81981566]
[1644677476258,6.77341726,93.984,93.872,17.81981566]
[1644677476457,1.45041726,93.982,93.89,15.968]
[1644677476660,1.45041726,93.987,93.9,15.36]
[1644677476858,1.45041726,93.982,93.9,15.36]
[1644677477059,5.322,93.981,93.9,15.36]
[1644677477263,43.82614388,93.98,93.901,47.40246407]
[1644677480267,1.45041726,93.979,93.901,47.40246407]
[1644677480462,43.82614388,93.98,93.91,15.9648]
[1644677480661,1.45041726,93.986,93.92,15.36]
[1644677480862,1.45041726,93.987,93.92,15.36]
[1644677481064,1.45041726,93.987,93.92,23.8]
[1644677481265,1.45041726,93.989,93.93,12.78]
[1644677481470,1.45041726,93.994,93.93,12.78]
[1644677481670,1.45041726,93.995,93.931,45.91435587]
[1644677482063,1.45041726,93.996,93.931,45.91435587]
[1644677482467,1.45041726,93.99,93.932,2.62390296]
[1644677482665,1.45041726,94.001,93.933,5.321]
[1644677482870,1.45041726,94.0,93.931,40.59335587]
[1644677483065,1.45041726,94.0,93.94,15.9592]
[1644677483268,1.45041726,94.0,93.95,12.78]
[1644677483468,1.45041726,94.001,93.95,12.78]
[1644677483666,1.45041726,94.001,93.951,5.32]
[1644677483865,1.45041726,94.004,93.95,12.78]
[1644677484070,1.45041726,94.004,93.95,28.7371]
[1644677484271,1.45041726,94.007,93.951,5.32]
[1644677484465,1.45041726,94.007,93.952,47.019399]
[1644677484665,1.45041726,94.008,93.953,5.32]
[1644677485466,1.45041726,94.008,93.96,15.956]
[1644677485666,1.45041726,94.009,93.96,28.736]
[1644677486169,1.45041726,94.01,93.96,28.736]
[1644677486366,1.45041726,94.008,93.96,28.736]
[1644677486967,1.45041726,94.011,93.96,28.736]
[1644677487169,1.45925954,94.018,93.961,61.0]
[1644677487469,5.319,94.043,93.971,52.0]
[1644677487668,2.90572462,94.057,93.98,12.78]
[1644677487869,4.9504279,94.055,93.98,12.78]
[1644677488070,4.9504279,94.055,93.981,5.317]
[1644677488269,45.96761526,94.055,93.982,45.21614927]
[1644677488571,4.9504279,94.054,93.983,5.317]
[1644677488972,41.01718736,94.055,93.983,5.317]
[1644677489169,2.90572462,94.06,93.983,5.317]
[1644677489871,2.90572462,94.058,93.983,5.317]
[1644677491171,2.90572462,94.058,93.99,15.951]
[1644677491373,2.90572462,94.069,94.0,12.78]
[1644677491674,79.0506,94.079,94.001,39.73197572]
[1644677491675,2.90572462,94.073,94.001,39.73197572]
[1644677491975,2.90572462,94.074,94.001,42.35587868]
[1644677492170,2.90572462,94.074,94.002,2.62390296]
[1644677492370,2.90572462,94.075,94.002,2.62390296]
[1644677493675,2.90572462,94.081,94.002,2.62390296]
[1644677493873,54.3958,94.095,94.01,15.9482]
[1644677493874,2.90572462,94.082,94.01,15.9482]
[1644677494074,2.90572462,94.082,94.02,12.78]
[1644677494477,44.98648962,94.081,94.021,37.53463415]
[1644677494874,5.316,94.08,94.021,34.91073119]
[1644677495074,2.90572462,94.078,94.021,34.91073119]
[1644677495273,2.90572462,94.082,94.021,34.91073119]
[1644677495675,49.0798,94.095,94.021,34.91073119]
[1644677495676,2.90572462,94.083,94.021,34.91073119]
[1644677495974,2.90572462,94.084,94.021,34.91073119]
[1644677496178,2.90572462,94.085,94.021,34.91073119]
[1644677496375,2.90572462,94.084,94.021,34.91073119]
[1644677496799,8.22172462,94.083,94.021,34.91073119]
[1644677497080,2.90572462,94.081,94.021,34.91073119]
[1644677497477,2.90572462,94.084,94.021,34.91073119]
[1644677498077,2.90572462,94.086,94.021,34.91073119]
[1644677498377,2.90572462,94.087,94.021,34.91073119]
[1644677498576,2.90572462,94.087,94.022,2.62390296]
[1644677499181,47.86068931,94.089,94.022,2.62390296]
[1644677499182,2.90572462,94.088,94.022,2.62390296]
[1644677499880,2.90572462,94.087,94.022,2.62390296]
[1644677500082,43.94416299,94.086,94.021,34.91073119]
[1644677500282,0.25,94.085,94.021,34.91073119]
[1644677500481,5.316,94.084,94.021,34.91073119]
[1644677500679,5.316,94.084,94.021,13.77649381]
[1644677500882,0.25,94.083,94.021,13.77649381]
[1644677501084,5.316,94.085,94.021,13.77649381]
[1644677501282,0.25,94.084,94.021,13.77649381]
[1644677502483,5.316,94.083,94.021,13.77649381]
[1644677503086,5.316,94.085,94.021,13.77649381]
[1644677503282,0.25,94.082,94.021,13.77649381]
[1644677503482,5.316,94.081,94.021,13.77649381]
[1644677503682,5.316,94.081,94.0,12.78]
[1644677503882,23.3472,94.08,94.0,12.78]
[1644677504082,23.3472,94.08,94.001,2.62390296]
[1644677504705,23.3472,94.08,94.002,39.83322776]
[1644677505105,23.3472,94.08,94.003,2.62390296]
[1644677505305,5.316,94.079,94.003,2.62390296]
[1644677505705,0.25,94.078,94.003,2.62390296]
[1644677505906,5.316,94.077,94.003,2.62390296]
[1644677506406,0.25,94.076,94.003,2.62390296]
[1644677506806,5.316,94.075,94.003,2.62390296]
[1644677507205,0.25,94.074,94.003,2.62390296]
[1644677507605,5.316,94.073,94.003,2.62390296]
[1644677507811,0.25,94.072,94.003,2.62390296]
[1644677508213,5.317,94.079,94.003,2.62390296]
[1644677508607,5.317,94.079,93.97,2.62390296]
[1644677508813,5.317,94.079,93.908,15.9775]
[1644677508814,15.9574,94.07,93.94,12.78]
[1644677509015,4.35858694,94.066,93.946,2.62390296]
[1644677509412,113.0,94.057,93.929,2.62390296]
[1644677509612,0.48,94.038,93.928,45.94481565]
[1644677509810,12.78,94.03,93.928,45.94481565]
[1644677510113,45.14126216,94.009,93.928,45.94481565]
[1644677510411,54.6413,94.008,93.897,20.47802417]
[1644677510711,57.26520296,94.008,93.897,20.47802417]
[1644677510912,2.62390296,94.007,93.898,2.62390296]
[1644677511111,5.321,94.006,93.898,2.62390296]
[1644677511413,15.9697,94.0,93.899,45.67662331]
[1644677511613,23.1297,94.0,93.899,45.67662331]
[1644677511812,0.25,93.999,93.9,2.62390296]
[1644677512019,2.87390296,93.999,93.9,2.62390296]
[1644677512212,2.87390296,93.999,93.876,20.47802417]
[1644677512413,15.9752,93.97,93.876,17.85412121]
[1644677512618,52.0494,93.969,93.876,17.85412121]
[1644677512816,52.0494,93.969,93.877,48.20122752]
[1644677512817,46.75814579,93.968,93.877,48.20122752]
[1644677513014,5.323,93.967,93.877,48.20122752]
[1644677513215,5.573,93.967,93.877,48.20122752]
[1644677513515,5.573,93.967,93.878,2.62390296]
[1644677513913,15.9767,93.96,93.878,2.62390296]
[1644677514115,5.323,93.959,93.879,17.85412121]
[1644677514313,5.323,93.967,93.879,17.85412121]
[1644677514513,5.323,93.967,93.88,2.62390296]
[1644677515716,0.25,93.966,93.88,2.62390296]
[1644677515914,5.323,93.965,93.88,2.62390296]
[1644677516315,0.25,93.964,93.88,2.62390296]
[1644677516516,5.323,93.963,93.88,2.62390296]
[1644677516720,46.7264,93.969,93.881,17.85412121]
[1644677516921,46.7264,93.969,93.881,36.67528158]
[1644677517219,46.7264,93.969,93.882,13.80506333]
[1644677517417,46.7264,93.969,93.882,31.65918454]
[1644677517617,46.7264,93.969,93.883,48.73539119]
[1644677518017,48.58829944,93.984,93.884,48.73539119]
[1644677518421,24.6305,93.989,93.885,48.73539119]
[1644677518719,47.6886,94.016,93.9,28.7475]
[1644677518919,5.322,94.015,93.91,12.78]
[1644677519320,5.322,94.015,93.911,31.65918454]
[1644677519517,5.322,94.015,93.911,106.29831238]
[1644677519518,50.73926788,94.015,93.911,106.29831238]
[1644677519717,47.6886,94.016,93.92,15.9637]
[1644677519917,47.6886,94.016,93.93,12.78]
[1644677520118,47.6886,94.016,93.93,23.15]
[1644677520321,47.6886,94.016,93.931,31.65918454]
[1644677520618,47.6886,94.016,93.932,20.47802417]
[1644677520819,47.6886,94.016,93.94,15.9597]
[1644677521018,5.32,94.047,93.95,12.78]
[1644677521219,0.25,94.046,93.95,12.78]
[1644677521620,5.319,94.045,93.951,2.62390296]
[1644677521819,0.25,94.044,93.951,2.62390296]
[1644677522020,43.71963737,94.044,93.952,42.69515296]
[1644677522220,43.46963737,94.044,93.952,42.69515296]
[1644677522422,43.46963737,94.044,93.953,2.62390296]
[1644677522620,5.319,94.043,93.953,2.62390296]
[1644677523827,43.46963737,94.044,93.953,2.62390296]
[1644677524130,43.46963737,94.044,93.96,15.9571]
[1644677524528,5.319,94.052,93.97,12.78]
[1644677524726,46.997,94.053,93.98,12.78]
[1644677524928,46.997,94.053,93.99,12.78]
[1644677525526,40.10904313,94.052,93.992,45.18929559]
[1644677525727,46.997,94.053,93.992,45.18929559]
[1644677528034,5.567,94.052,93.957,2.62390296]
[1644677528236,8.19090296,94.052,93.943,5.317]
[1644677528434,44.54220822,94.051,93.93,12.78]
[1644677528634,5.319,94.05,93.93,12.78]
[1644677528834,8.19290296,94.05,93.93,12.78]
[1644677529034,20.51310822,94.049,93.931,38.96203605]
[1644677529236,46.93035816,94.029,93.931,38.96203605]
[1644677529433,24.1767,94.028,93.931,38.96203605]
[1644677529635,24.4267,94.028,93.931,38.96203605]
[1644677530835,5.32,94.027,93.931,38.96203605]
[1644677531236,0.25,94.026,93.931,38.96203605]
[1644677531435,5.32,94.025,93.931,38.96203605]
[1644677531635,24.1767,94.028,93.931,38.96203605]
[1644677532638,0.25,94.027,93.931,38.96203605]
[1644677532934,5.32,94.026,93.931,38.96203605]
[1644677533145,5.32,94.026,93.94,15.9604]
[1644677533336,24.1767,94.028,93.95,12.78]
[1644677533936,15.9588,94.07,93.951,2.62390296]
[1644677533937,5.319,94.027,93.951,2.62390296]
[1644677534138,45.26259553,94.064,93.96,15.9572]
[1644677534340,45.26259553,94.064,93.97,12.78]
[1644677534537,5.317,94.05,93.971,40.58387261]
[1644677534737,23.0559,94.069,93.971,40.58387261]
[1644677534938,5.317,94.052,93.971,40.58387261]
[1644677535742,5.317,94.052,93.98,15.954]
[1644677535939,5.317,94.052,93.99,12.78]
[1644677536139,5.317,94.052,93.991,40.68121469]
[1644677537241,23.0559,94.069,93.991,40.68121469]
[1644677537441,38.16422809,94.067,93.991,40.68121469]
[1644677537740,5.317,94.066,93.991,40.68121469]
[1644677541368,38.16422809,94.067,93.991,40.68121469]
[1644677542564,23.0559,94.069,93.991,40.68121469]
[1644677542766,5.317,94.068,93.992,5.317]
[1644677542966,5.317,94.068,93.991,40.68121469]
[1644677543664,35.59574582,94.067,93.991,40.68121469]
[1644677543865,46.29574582,94.067,93.991,40.68121469]
[1644677544066,5.317,94.066,93.991,40.68121469]
[1644677544266,0.25,94.065,93.991,40.68121469]
[1644677544466,5.317,94.064,93.991,40.68121469]
[1644677544867,0.25,94.063,93.991,40.68121469]
[1644677545067,5.317,94.062,93.991,40.68121469]
[1644677545367,0.25,94.061,93.991,40.68121469]
[1644677546369,5.317,94.06,93.991,40.68121469]
[1644677546568,5.567,94.065,93.991,40.68121469]
[1644677546768,0.25,94.064,93.991,40.68121469]
[1644677546968,5.317,94.063,93.991,40.68121469]
[1644677547469,0.25,94.062,93.991,40.68121469]
[1644677547671,5.317,94.061,93.97,15.33]
[1644677547870,15.9594,94.06,93.91,53.204]
[1644677548169,5.319,94.059,93.937,2.62390296]
[1644677548369,22.8559,94.058,93.94,15.33]
[1644677548576,5.319,94.057,93.94,15.33]
[1644677548771,0.25,94.056,93.941,45.79388693]
[1644677548970,5.319,94.055,93.941,45.79388693]
[1644677549171,12.9090923,94.055,93.941,45.79388693]
[1644677549370,15.9631,94.04,93.941,45.79388693]
[1644677549570,68.04736127,94.039,93.906,17.85412121]
[1644677549770,105.1,94.037,93.89,15.33]
[1644677549971,12.9110923,94.036,93.847,15.9332]
[1644677550171,105.1,94.035,93.87,15.33]
[1644677550370,15.33,94.02,93.868,17.85412121]
[1644677550571,4.35858694,94.004,93.869,48.15362794]
[1644677550772,42.88705745,93.999,93.869,48.15362794]
[1644677551174,0.25,93.998,93.869,48.15362794]
[1644677551373,5.322,93.997,93.869,48.15362794]
[1644677551573,15.122,93.997,93.869,48.15362794]
[1644677551774,15.975,93.97,93.869,48.15362794]
[1644677551974,46.12902689,93.969,93.869,48.15362794]
[1644677552175,46.37902689,93.969,93.869,48.15362794]
[1644677552775,15.9766,93.96,93.869,48.15362794]
[1644677552979,5.323,93.959,93.869,48.15362794]
[1644677553176,2.87390296,93.959,93.869,48.15362794]
[1644677553377,5.324,93.958,93.869,48.15362794]
[1644677553576,7.94790296,93.958,93.869,48.15362794]
[1644677553781,0.25,93.957,93.869,48.15362794]
[1644677553975,5.324,93.956,93.869,48.15362794]
[1644677554378,15.978,93.95,93.869,48.15362794]
[1644677554577,39.32926919,93.953,93.87,2.62390296]
[1644677554777,5.324,93.959,93.87,17.95390296]
[1644677554977,5.324,93.968,93.87,17.95390296]
[1644677555179,5.324,93.968,93.871,18.89108529]
[1644677555378,0.25,93.967,93.871,35.96729194]
[1644677555578,0.25,93.967,93.872,18.89108529]
[1644677555778,5.323,93.966,93.872,18.89108529]
[1644677555977,47.47744376,93.967,93.873,2.62390296]
[1644677556581,5.323,93.966,93.873,2.62390296]
[1644677556780,0.25,93.965,93.873,2.62390296]
[1644677556981,5.323,93.964,93.873,2.62390296]
[1644677557179,0.25,93.965,93.873,2.62390296]
[1644677557480,0.25,93.963,93.873,2.62390296]
[1644677557880,0.25,93.966,93.873,2.62390296]
[1644677560180,5.323,93.965,93.873,2.62390296]
[1644677560380,5.323,93.965,93.869,48.15362794]
[1644677560579,0.25,93.964,93.869,48.15362794]
[1644677560781,5.323,93.963,93.87,15.33]
[1644677561180,47.22744376,93.967,93.871,2.62390296]
[1644677562380,5.323,93.966,93.871,2.62390296]
[1644677562783,0.25,93.965,93.871,2.62390296]
[1644677562983,5.323,93.964,93.871,2.62390296]
[1644677563281,0.25,93.963,93.871,2.62390296]
[1644677563684,5.323,93.962,93.871,2.62390296]
[1644677564087,0.25,93.961,93.871,2.62390296]
[1644677564286,5.323,93.96,93.871,2.62390296]
[1644677564488,5.323,93.96,93.87,12.79]
[1644677564787,0.25,93.959,93.87,12.79]
[1644677565189,5.323,93.958,93.87,12.79]
[1644677565587,0.25,93.957,93.87,12.79]
[1644677566789,0.25,93.959,93.87,12.79]
[1644677568892,5.323,93.958,93.87,12.79]
[1644677569094,5.323,93.958,93.871,2.62390296]
[1644677569293,47.22744376,93.967,93.871,2.62390296]
[1644677569593,5.323,93.966,93.871,2.62390296]
[1644677569793,47.22744376,93.967,93.871,2.62390296]
[1644677569992,5.323,93.966,93.871,2.62390296]
[1644677570293,5.323,93.999,93.88,15.9708]
[1644677570494,5.323,94.002,93.89,12.79]
[1644677570893,5.323,93.987,93.891,2.62390296]
[1644677571094,44.12134184,93.986,93.891,46.1795376]
[1644677571296,27.8992,94.001,93.891,46.1795376]
[1644677571495,5.322,93.987,93.892,2.62390296]
[1644677572794,5.322,93.987,93.9,15.9674]
[1644677573093,5.322,93.987,93.911,48.32014128]
[1644677573296,36.22509987,93.991,93.911,48.32014128]
[1644677573493,36.22509987,93.991,93.912,2.62390296]
[1644677573694,5.321,93.987,93.912,2.62390296]
[1644677574994,36.22509987,93.991,93.912,2.62390296]
[1644677575995,36.22509987,93.991,93.911,48.32014128]
[1644677576194,5.322,93.987,93.911,48.32014128]
[1644677576394,36.22509987,93.991,93.911,48.32014128]
[1644677576595,0.25,93.986,93.883,2.62390296]
[1644677576797,5.322,93.985,93.883,2.62390296]
[1644677577099,2.62390296,93.984,93.87,12.79]
[1644677577298,15.9731,93.98,93.865,2.62390296]
[1644677577497,5.323,93.979,93.86,12.79]
[1644677577697,8.19690296,93.979,93.866,43.76245119]
[1644677577898,2.87390296,93.979,93.866,43.76245119]
[1644677578099,7.94690296,93.978,93.866,43.76245119]
[1644677578298,0.25,93.977,93.866,43.76245119]
[1644677578498,36.58094715,93.975,93.866,43.76245119]
[1644677578698,5.573,93.974,93.866,43.76245119]
[1644677578899,15.976,93.97,93.866,43.76245119]
[1644677579099,10.01260165,93.969,93.866,43.76245119]
[1644677579318,4.68960165,93.968,93.866,43.76245119]
[1644677579500,4.93960165,93.968,93.866,43.76245119]
[1644677579703,5.323,93.967,93.866,43.76245119]
[1644677579900,15.9761,93.96,93.83,12.79]
[1644677580100,10.01460165,93.959,93.83,12.79]
[1644677580302,4.68960165,93.958,93.83,12.79]
[1644677580504,5.325,93.957,93.83,12.79]
[1644677580701,4.68960165,93.956,93.83,12.79]
[1644677580903,46.87669555,93.954,93.831,45.01001005]
[1644677581101,10.01460165,93.953,93.831,45.01001005]
[1644677581303,4.68960165,93.952,93.831,45.01001005]
[1644677581502,5.325,93.951,93.831,45.01001005]
[1644677581702,15.9817,93.93,93.831,45.01001005]
[1644677581906,41.23205522,93.928,93.831,45.01001005]
[1644677582107,5.325,93.927,93.831,45.01001005]
[1644677582310,5.575,93.927,93.831,45.01001005]
[1644677582607,24.1096,93.926,93.831,45.01001005]
[1644677582808,5.575,93.925,93.831,45.01001005]
[1644677583411,15.9833,93.92,93.831,45.01001005]
[1644677583612,5.325,93.919,93.831,45.01001005]
[1644677583811,5.575,93.919,93.831,45.01001005]
[1644677584011,0.25,93.919,93.831,45.01001005]
[1644677584212,5.325,93.918,93.831,45.01001005]
[1644677584612,0.25,93.917,93.831,45.01001005]
[1644677584815,0.25,93.917,93.76,159.85]
[1644677584816,15.9851,93.91,93.795,2.62390296]
[1644677585014,5.327,93.909,93.795,2.62390296]
[1644677585216,7.95090296,93.916,93.79,12.79]
[1644677585414,5.577,93.908,93.79,12.79]
[1644677585618,8.20090296,93.908,93.79,12.79]
[1644677585817,15.9884,93.89,93.791,40.50744243]
[1644677586014,47.73118809,93.888,93.791,40.50744243]
[1644677586214,5.578,93.887,93.791,40.50744243]
[1644677586834,5.578,93.887,93.774,18.46215016]
[1644677587034,5.578,93.887,93.769,16.20306642]
[1644677587035,15.9909,93.88,93.769,16.20306642]
[1644677587228,5.579,93.879,93.76,2.62390296]
[1644677587828,0.25,93.879,93.761,42.31010934]
[1644677588030,0.25,93.879,93.761,58.51317576]
[1644677588232,0.25,93.885,93.77,12.79]
[1644677588630,0.25,93.885,93.771,37.28911954]
[1644677589031,0.25,93.885,93.772,37.28911954]
[1644677589432,0.25,93.885,93.773,37.28911954]
[1644677589631,15.9898,93.88,93.773,34.66521658]
[1644677589833,5.578,93.879,93.773,34.66521658]
[1644677590033,5.578,93.879,93.773,16.20306642]
[1644677590234,5.578,93.879,93.772,10.12546648]
[1644677590433,5.578,93.879,93.774,2.62390296]
[1644677590434,0.25,93.879,93.774,2.62390296]
[1644677590731,5.328,93.878,93.774,2.62390296]
[1644677590933,5.328,93.885,93.774,2.62390296]
[1644677591132,5.328,93.885,93.776,34.96586178]
[1644677591334,5.328,93.885,93.791,35.09450099]
[1644677591734,5.328,93.885,93.792,18.82696938]
[1644677592134,5.328,93.885,93.793,18.82696938]
[1644677592334,48.2262,93.886,93.793,28.95243586]
[1644677592538,48.2262,93.886,93.794,18.82696938]
[1644677592735,48.2262,93.886,93.794,28.95243586]
[1644677592936,48.2262,93.886,93.795,28.95243586]
[1644677593136,5.328,93.939,93.81,12.79]
[1644677593337,47.5219,93.923,93.81,39.1306]
[1644677593537,5.325,93.922,93.811,12.74936944]
[1644677593738,47.5219,93.923,93.811,47.41458602]
[1644677593937,5.325,93.922,93.812,12.74936944]
[1644677594137,35.16506798,93.926,93.813,47.32626702]
[1644677594337,35.16506798,93.926,93.82,159.85]
[1644677594539,35.16506798,93.926,93.83,12.79]
[1644677594741,5.325,93.925,93.84,15.9764]
[1644677594939,5.325,93.925,93.851,46.53434911]
[1644677595142,35.16506798,93.926,93.851,46.53434911]
[1644677596442,5.325,93.925,93.851,46.53434911]
[1644677598743,0.25,93.924,93.851,46.53434911]
[1644677598944,5.325,93.923,93.851,46.53434911]
[1644677599145,5.325,93.923,93.82,28.7686]
[1644677599344,23.3529,93.922,93.82,12.79]
[1644677599546,5.325,93.921,93.82,12.79]
[1644677599745,0.25,93.92,93.82,12.79]
[1644677599945,5.325,93.919,93.82,12.79]
[1644677600348,0.25,93.918,93.821,47.56534336]
[1644677600546,5.325,93.917,93.821,47.56534336]
[1644677600745,0.25,93.916,93.821,47.56534336]
[1644677600944,5.325,93.915,93.821,47.56534336]
[1644677601147,0.25,93.916,93.821,47.56534336]
[1644677601347,5.325,93.915,93.821,47.56534336]
[1644677601747,0.25,93.914,93.821,47.56534336]
[1644677602146,15.9846,93.91,93.821,47.56534336]
[1644677602347,45.25731734,93.908,93.821,47.56534336]
[1644677602746,2.87390296,93.907,93.821,47.56534336]
[1644677602949,5.325,93.906,93.821,47.56534336]
[1644677603145,7.94890296,93.906,93.821,47.56534336]
[1644677603347,2.87390296,93.905,93.821,47.56534336]
[1644677603548,105.1,93.899,93.784,2.62390296]
[1644677603747,105.1,93.897,93.76,12.79]
[1644677603948,7.61235914,93.898,93.75,12.79]
[1644677604148,10.31745618,93.896,93.75,12.79]
[1644677604351,4.73845618,93.895,93.751,16.20306642]
[1644677604549,15.9945,93.87,93.752,45.71885029]
[1644677604751,42.5344609,93.868,93.752,45.71885029]
[1644677605149,0.25,93.867,93.752,61.92191671]
[1644677605348,5.579,93.867,93.752,61.92191671]
[1644677606352,47.5345,93.869,93.753,31.2115196]
[1644677606553,5.329,93.9,93.753,31.2115196]
[1644677606755,2.91443086,93.922,93.77,159.85]
[1644677606951,4.35858694,93.949,93.754,48.42569714]
[1644677606952,5.329,93.908,93.8,15.9829]
[1644677607152,5.329,93.934,93.8,15.9829]
[1644677607353,42.00509589,93.911,93.81,12.79]
[1644677607756,42.00509589,93.911,93.811,2.62390296]
[1644677607954,5.327,93.91,93.811,2.62390296]
[1644677608155,5.327,93.91,93.82,15.9805]
[1644677608352,1.4623283,93.917,93.83,12.79]
[1644677608753,1.4623283,93.918,93.83,12.79]
[1644677608961,1.4623283,93.918,93.831,2.62390296]
[1644677609358,37.86063962,93.917,93.832,35.39008444]
[1644677609556,1.4623283,93.915,93.832,35.39008444]
[1644677609757,0.25,93.914,93.832,35.39008444]
[1644677609957,1.4623283,93.918,93.833,2.62390296]
[1644677610257,1.4623283,93.93,93.833,31.0080805]
[1644677610457,1.4623283,93.94,93.834,17.21417754]
[1644677610662,1.4623283,93.95,93.834,48.42569714]
[1644677610857,37.61821694,93.944,93.835,31.2115196]
[1644677611056,37.61821694,93.944,93.835,48.42569714]
[1644677611260,37.61821694,93.944,93.836,48.42569714]
[1644677611557,37.61821694,93.944,93.86,15.9737]
[1644677611756,37.61821694,93.944,93.87,12.79]
[1644677611956,37.61821694,93.944,93.871,34.85082272]
[1644677615865,5.324,93.943,93.871,34.85082272]
[1644677616062,5.574,93.943,93.871,34.85082272]
[1644677617268,7.0363283,93.943,93.871,34.85082272]
[1644677617471,9.66023126,93.943,93.871,34.85082272]
[1644677617670,1.4623283,93.939,93.871,34.85082272]
[1644677617871,5.324,93.938,93.871,34.85082272]
[1644677618071,5.574,93.938,93.871,34.85082272]
[1644677618271,7.0363283,93.938,93.871,34.85082272]
[1644677618473,1.4623283,93.937,93.871,34.85082272]
[1644677618671,5.324,93.936,93.871,34.85082272]
[1644677618873,0.25,93.936,93.871,34.85082272]
[1644677619073,5.324,93.935,93.871,34.85082272]
[1644677619379,0.25,93.934,93.871,34.85082272]
[1644677619572,5.324,93.933,93.871,34.85082272]
[1644677619772,0.25,93.932,93.871,34.85082272]
[1644677619974,5.324,93.931,93.871,34.85082272]
[1644677620272,0.25,93.93,93.871,34.85082272]
[1644677620474,5.324,93.929,93.871,34.85082272]
[1644677620683,37.18270883,93.928,93.871,34.85082272]
[1644677620884,1.4623283,93.936,93.871,34.85082272]
[1644677621086,23.5814,93.943,93.872,2.62390296]
[1644677621287,5.324,93.95,93.872,9.84390296]
[1644677621486,1.4623283,93.956,93.872,9.84390296]
[1644677621686,0.25,93.955,93.873,2.62390296]
[1644677621885,37.78637136,93.955,93.873,2.62390296]
[1644677622086,39.24869966,93.955,93.873,2.62390296]
[1644677622288,5.324,93.954,93.873,2.62390296]
[1644677623487,0.25,93.953,93.873,2.62390296]
[1644677624089,37.78637136,93.955,93.873,2.62390296]
[1644677624289,23.0355,93.958,93.873,2.62390296]
[1644677624490,1.4623283,93.967,93.873,2.62390296]
[1644677624988,1.4623283,93.979,93.874,17.21417754]
[1644677625188,1.4623283,93.981,93.874,27.70417754]
[1644677625387,1.4623283,93.982,93.875,12.74936944]
[1644677625587,1.4623283,93.982,93.9,15.9661]
[1644677625787,1.4623283,93.985,93.91,12.79]
[1644677626189,5.572,93.984,93.91,12.79]
[1644677626487,0.25,93.984,93.911,34.49544345]
[1644677626689,5.322,93.983,93.911,34.49544345]
[1644677627091,5.322,93.983,93.912,2.62390296]
[1644677627288,1.4623283,93.992,93.912,2.62390296]
[1644677627488,1.4623283,94.006,93.912,2.62390296]
[1644677627688,1.4623283,94.005,93.912,2.62390296]
[1644677627890,35.89743869,94.004,93.912,2.62390296]
[1644677628492,0.25,94.003,93.912,2.62390296]
[1644677628695,5.321,94.002,93.912,2.62390296]
[1644677628892,5.321,94.003,93.92,15.9639]
[1644677629092,5.321,94.003,93.93,12.79]
[1644677629293,5.321,94.003,93.931,35.22476077]
[1644677629492,5.321,94.003,93.931,46.04476077]
[1644677630693,35.89743869,94.004,93.931,46.04476077]
[1644677630993,35.89743869,94.004,93.931,35.22476077]
[1644677631198,0.25,94.003,93.931,35.22476077]
[1644677631497,5.321,94.002,93.931,35.22476077]
[1644677632794,0.25,94.001,93.931,35.22476077]
[1644677633193,5.321,94.0,93.931,35.22476077]
[1644677633796,0.25,93.999,93.931,35.22476077]
[1644677633994,5.321,94.003,93.931,35.22476077]
[1644677634197,5.321,93.999,93.932,2.62390296]
[1644677634397,1.4623283,94.02,93.932,2.62390296]
[1644677634595,1.4623283,94.03,93.932,2.62390296]
[1644677634794,550.84666623,94.035,93.933,17.21417754]
[1644677634995,549.38433793,94.035,93.933,17.21417754]
[1644677635195,36.50081483,94.034,93.934,2.62390296]
[1644677635596,24.2578,94.033,93.934,19.8380805]
[1644677635795,24.2578,94.033,93.94,15.961]
[1644677635998,24.2578,94.033,93.951,38.95579391]
[1644677636397,549.38433793,94.035,93.951,38.95579391]